bitfinex/quotes_BTCUSD_20220105
["timestamp","ask_amount","ask_price","bid_price","bid_amount"]
[1641377088513,0.88414085,46977.0,46976.0,6e-05]
[1641377088712,0.93738185,46977.0,46976.0,6e-05]
[1641377089515,0.606777,46977.0,46976.0,6e-05]
[1641377091361,0.533243,46975.0,46974.0,0.05302382]
[1641377091566,0.606779,46975.0,46974.0,0.05302382]
[1641377094708,0.1064866,46972.0,46969.0,0.01215605]
[1641377094907,0.3037733,46970.0,46969.0,0.01215605]
[1641377095108,0.61804603,46970.0,46969.0,0.01215605]
[1641377096208,0.67128903,46970.0,46967.0,0.05437726]
[1641377096510,0.77777433,46970.0,46967.0,0.05437726]
[1641377096711,0.77777433,46970.0,46968.0,0.00476911]
[1641377097508,0.67128903,46970.0,46968.0,0.00476911]
[1641377098158,0.4070163,46970.0,46968.0,0.00476911]
[1641377099260,0.25638067,46969.0,46968.0,0.00476911]
[1641377099459,0.4070163,46970.0,46968.0,0.00476911]
[1641377100159,0.4070163,46970.0,46967.0,0.05437726]
[1641377100160,0.2576509,46969.0,46967.0,0.05437726]
[1641377100359,1.666789,46968.0,46967.0,0.05437726]
[1641377100561,1.81806464,46968.0,46967.0,0.05437726]
[1641377100960,2.07717911,46968.0,46967.0,0.05437726]
[1641377101161,1.06572852,46968.0,46967.0,0.05437726]
[1641377104812,2.06054852,46968.0,46967.0,0.05437726]
[1641377105213,1.11054852,46968.0,46967.0,0.05437726]
[1641377105661,1.08218852,46968.0,46967.0,0.05437726]
[1641377106461,0.573249,46968.0,46967.0,0.10227726]
[1641377106665,0.01646,46968.0,46967.0,0.10227726]
[1641377107063,0.01646,46968.0,46967.0,0.45581326]
[1641377108261,0.01646,46968.0,46967.0,0.10227726]
[1641377109316,0.06646,46968.0,46967.0,0.10227726]
[1641377111018,0.01646,46968.0,46967.0,0.35992816]
[1641377111220,0.01646,46968.0,46967.0,0.71346416]
[1641377111419,0.01646,46968.0,46967.0,0.45581326]
[1641377113359,0.01646,46968.0,46967.0,0.70401889]
[1641377114363,0.01646,46968.0,46967.0,0.45581326]
[1641377114560,0.01646,46968.0,46967.0,0.70531918]
[1641377115965,0.01646,46968.0,46967.0,0.45581326]
[1641377116164,0.053234,46969.0,46967.0,0.69367838]
[1641377116364,0.00022323,46970.0,46968.0,0.59263688]
[1641377116565,0.00022323,46970.0,46969.0,1.1779]
[1641377116812,0.00022323,46970.0,46969.0,1.531436]
[1641377118414,0.00022323,46970.0,46969.0,1.62996065]
[1641377118613,0.05,46973.0,46969.0,1.62996065]
[1641377118814,0.05,46973.0,46971.0,0.10437788]
[1641377119016,0.15,46977.0,46972.0,0.73805843]
[1641377119217,0.053228,46975.0,46973.0,0.0479]
[1641377119417,0.053228,46975.0,46974.0,0.353536]
[1641377119617,0.053228,46975.0,46974.0,0.0479]
[1641377120020,0.153228,46975.0,46974.0,0.0479]
[1641377125222,0.153228,46975.0,46973.0,0.00476865]
[1641377125223,0.4108789,46975.0,46973.0,0.00476865]
[1641377125412,0.153228,46975.0,46973.0,0.00476865]
[1641377127817,0.153228,46975.0,46973.0,0.05266865]
[1641377129169,0.153228,46975.0,46973.0,0.10589465]
[1641377130168,0.053228,46975.0,46973.0,0.10589465]
[1641377131368,0.05344827,46976.0,46973.0,0.10589465]
[1641377131570,0.10344827,46976.0,46973.0,0.10589465]
[1641377131812,0.05344827,46976.0,46973.0,0.05266865]
[1641377132012,0.05,46975.0,46973.0,0.05266865]
[1641377132516,0.1,46975.0,46973.0,0.14606425]
[1641377133913,0.1,46975.0,46973.0,0.05266865]
[1641377134112,0.1,46975.0,46973.0,0.14472808]
[1641377134712,0.1,46975.0,46973.0,0.05266865]
[1641377135312,0.1,46975.0,46973.0,0.15809303]
[1641377135958,0.1,46975.0,46973.0,0.05266865]
[1641377136959,0.10667527,46976.0,46973.0,0.05266865]
[1641377137960,0.10667527,46976.0,46973.0,0.15792431]
[1641377138360,0.15645351,46976.0,46973.0,0.15792431]
[1641377138561,0.05006438,46975.0,46973.0,0.05266865]
[1641377138760,0.10006438,46975.0,46973.0,0.14950608]
[1641377139812,0.10006438,46975.0,46973.0,0.05266865]
[1641377140013,0.10006438,46975.0,46973.0,0.15333104]
[1641377141213,0.10006438,46975.0,46974.0,0.79810633]
[1641377141416,0.10006438,46975.0,46974.0,0.0479]
[1641377143166,0.10006438,46975.0,46974.0,0.0689]
[1641377144366,0.10006438,46975.0,46974.0,0.0889]
[1641377144565,0.10006438,46975.0,46974.0,0.0679]
[1641377145668,0.10006438,46975.0,46974.0,0.0479]
[1641377146368,0.10006438,46975.0,46974.0,0.0689]
[1641377147614,0.10006438,46975.0,46974.0,0.0479]
[1641377148415,0.10006438,46975.0,46974.0,0.0689]
[1641377149617,0.10006438,46975.0,46974.0,0.0479]
[1641377150426,0.304856,46978.0,46977.0,0.00868667]
[1641377150672,0.304856,46978.0,46974.0,0.0479]
[1641377151070,0.304856,46978.0,46975.0,0.0532267]
[1641377151380,0.304856,46978.0,46975.0,0.1011267]
[1641377151570,0.053227,46977.0,46975.0,0.1011267]
[1641377151772,0.053227,46977.0,46975.0,0.0479]
[1641377155116,0.01773574,46977.0,46975.0,0.0479]
[1641377156318,0.01773574,46977.0,46975.0,0.10112861]
[1641377156919,0.40507324,46978.0,46975.0,0.10112861]
[1641377157220,0.40507324,46978.0,46975.0,0.15435561]
[1641377157419,0.40507324,46978.0,46975.0,0.10112861]
[1641377158166,0.35507324,46978.0,46976.0,0.23371793]
[1641377158366,0.35507324,46978.0,46977.0,0.0479]
[1641377158566,0.354856,46978.0,46977.0,0.0479]
[1641377159270,0.354856,46978.0,46977.0,0.2830419]
[1641377162010,0.304856,46978.0,46977.0,0.2830419]
[1641377162209,0.354856,46978.0,46977.0,0.68979771]
[1641377162811,0.354856,46978.0,46977.0,0.45465581]
[1641377164913,0.304856,46978.0,46977.0,0.45465581]
[1641377165964,0.01197416,46979.0,46978.0,0.35]
[1641377166165,0.01197416,46979.0,46978.0,0.401436]
[1641377168166,0.01197416,46979.0,46978.0,0.63118127]
[1641377168966,0.0110358,46979.0,46978.0,0.63118127]
[1641377169167,0.0110358,46979.0,46978.0,0.68440227]
[1641377169416,0.0110358,46979.0,46978.0,0.454657]
[1641377171318,0.0110358,46979.0,46978.0,0.68261221]
[1641377171520,0.0110358,46979.0,46978.0,0.454657]
[1641377171720,0.0110358,46979.0,46978.0,0.6877026]
[1641377172123,0.0110358,46979.0,46978.0,0.454657]
[1641377172824,0.0110358,46979.0,46978.0,0.68238235]
[1641377173664,0.0110358,46979.0,46978.0,0.68317373]
[1641377173864,0.0110358,46979.0,46978.0,0.454657]
[1641377175068,0.0110358,46979.0,46978.0,0.68390335]
[1641377175471,0.0110358,46979.0,46978.0,0.454657]
[1641377177820,0.0110358,46979.0,46976.0,0.10644704]
[1641377178321,0.0110358,46979.0,46974.0,0.05323383]
[1641377178620,0.0110358,46979.0,46972.0,0.01220155]
[1641377178820,0.0110358,46979.0,46973.0,0.353536]
[1641377179021,0.053236,46977.0,46974.0,0.36502138]
[1641377179224,0.053236,46977.0,46975.0,0.353536]
[1641377180769,0.053236,46977.0,46975.0,0.406768]
[1641377181173,0.053236,46977.0,46975.0,0.63743803]
[1641377181470,0.053236,46977.0,46976.0,0.22939039]
[1641377181671,0.053236,46977.0,46976.0,0.58292639]
[1641377182671,0.0110358,46979.0,46976.0,0.63615039]
[1641377182871,0.0110358,46979.0,46977.0,0.353536]
[1641377183072,0.0110358,46979.0,46978.0,0.23465899]
[1641377183272,0.0110358,46979.0,46978.0,0.58819499]
[1641377184317,0.0110358,46979.0,46978.0,0.353536]
[1641377186724,0.0110358,46979.0,46974.0,0.0479]
[1641377186922,0.053229,46977.0,46975.0,0.353536]
[1641377187724,0.053229,46977.0,46975.0,0.406765]
[1641377188169,0.053229,46977.0,46975.0,0.46691926]
[1641377188372,0.053229,46977.0,46975.0,0.45856594]
[1641377188569,0.053229,46977.0,46975.0,0.46593918]
[1641377188771,0.053229,46977.0,46975.0,0.45856594]
[1641377188969,0.053229,46977.0,46975.0,0.69337273]
[1641377189370,0.053229,46977.0,46976.0,0.22814867]
[1641377189572,0.053229,46977.0,46976.0,0.58168467]
[1641377189771,0.053229,46977.0,46976.0,0.353536]
[1641377190176,0.053229,46977.0,46976.0,0.58704285]
[1641377190377,0.0110358,46979.0,46976.0,0.63494285]
[1641377190574,0.0110358,46979.0,46977.0,0.45997777]
[1641377190874,0.0110358,46979.0,46978.0,0.2941006]
[1641377191075,0.0110358,46979.0,46978.0,0.6476366]
[1641377191276,0.0110358,46979.0,46978.0,0.401436]
[1641377191675,0.0110358,46979.0,46978.0,0.63400636]
[1641377191921,0.0110358,46979.0,46978.0,0.401436]
[1641377193522,0.0110358,46979.0,46978.0,0.6412253]
[1641377194624,0.053419,46983.0,46978.0,0.6412253]
[1641377194625,0.09938389,46987.0,46982.0,0.1064398]
[1641377194824,0.09458389,46987.0,46982.0,0.05322]
[1641377195228,0.05322,46984.0,46982.0,0.05322]
[1641377195902,0.05322,46984.0,46982.0,0.05322134]
[1641377197201,0.05322,46984.0,46982.0,0.10644334]
[1641377198402,0.05322,46984.0,46983.0,0.353536]
[1641377198607,0.0001,46987.0,46983.0,0.70830313]
[1641377198804,0.0001,46987.0,46985.0,0.5992]
[1641377199004,0.7921679,46989.0,46987.0,0.42]
[1641377199335,0.7921679,46989.0,46988.0,0.0479]
[1641377201331,0.7921679,46989.0,46988.0,0.05342372]
[1641377201529,0.7921679,46989.0,46988.0,0.0479]
[1641377203170,0.7921679,46989.0,46988.0,0.30174574]
[1641377206173,0.7921679,46989.0,46988.0,0.28087239]
[1641377207627,0.7921679,46989.0,46988.0,0.64087239]
[1641377207825,0.7921679,46989.0,46988.0,0.4079]
[1641377209525,0.7921679,46989.0,46988.0,0.761436]
[1641377209726,0.7921679,46989.0,46988.0,0.65075861]
[1641377210126,0.79223796,46989.0,46988.0,0.61575861]
[1641377212970,0.79223796,46989.0,46988.0,0.366436]
[1641377213170,0.84223796,46989.0,46988.0,0.366436]
[1641377214729,1.08466341,46989.0,46987.0,0.05320806]
[1641377214935,1.08466341,46989.0,46983.0,0.01220116]
[1641377214936,0.60999506,46988.0,46983.0,0.01220116]
[1641377215230,0.053224,46986.0,46983.0,0.01220116]
[1641377215429,0.053223,46987.0,46983.0,0.01220116]
[1641377216331,0.05322,46984.0,46980.0,0.10643871]
[1641377216730,0.053223,46987.0,46980.0,0.10643871]
[1641377217131,0.053223,46987.0,46980.0,0.21287371]
[1641377217334,0.053223,46987.0,46983.0,0.05321775]
[1641377217531,0.84223796,46989.0,46984.0,0.353536]
[1641377218373,0.84245601,46989.0,46984.0,0.406749]
[1641377218571,0.053213,46988.0,46985.0,0.05321258]
[1641377218776,0.053213,46988.0,46986.0,0.353536]
[1641377219672,0.053213,46988.0,46985.0,0.05321258]
[1641377219872,0.053213,46988.0,46982.0,3.21832875]
[1641377220072,0.053213,46988.0,46983.0,0.353536]
[1641377220272,0.053213,46988.0,46976.0,0.29]
[1641377220473,0.053213,46988.0,46979.0,0.353536]
[1641377220674,6.758e-05,46987.0,46980.0,0.2819351]
[1641377220875,0.053221,46984.0,46982.0,0.05322002]
[1641377221077,0.78115353,46989.0,46983.0,0.63981323]
[1641377221276,0.78115353,46989.0,46983.0,0.401436]
[1641377221673,0.78115353,46989.0,46983.0,0.0479]
[1641377221924,0.78115353,46989.0,46984.0,0.10641996]
[1641377222124,0.78115353,46989.0,46984.0,0.15431996]
[1641377222822,0.77359353,46989.0,46984.0,0.15431996]
[1641377223023,0.053211,46988.0,46986.0,0.106423]
[1641377223825,0.046311,46988.0,46986.0,0.106423]
[1641377224023,0.046311,46988.0,46986.0,0.053212]
[1641377224223,0.046311,46988.0,46986.0,0.106424]
[1641377224622,0.044711,46988.0,46986.0,0.053212]
[1641377225423,0.044711,46988.0,46985.0,0.05320998]
[1641377226077,0.044711,46988.0,46985.0,0.10642298]
[1641377226879,0.044711,46988.0,46985.0,0.10642398]
[1641377228180,0.044711,46988.0,46985.0,0.15963698]
[1641377228780,0.044711,46988.0,46985.0,0.10642398]
[1641377230333,0.044711,46988.0,46986.0,0.053212]
[1641377231134,0.044711,46988.0,46985.0,0.10642398]
[1641377231334,6.268e-05,46987.0,46985.0,0.10642398]
[1641377232933,6.268e-05,46987.0,46986.0,0.23052099]
[1641377233180,6.268e-05,46987.0,46986.0,0.63195699]
[1641377234283,0.77337548,46989.0,46986.0,0.63195699]
[1641377234484,0.55326394,47000.0,46999.0,1.25711254]
[1641377234683,0.55326394,47000.0,46999.0,2.19444248]
[1641377234881,0.55326394,47000.0,46999.0,1.19565703]
[1641377235279,0.55326394,47000.0,46999.0,0.59645703]
[1641377235481,0.80855594,47000.0,46999.0,0.086]
[1641377235680,1.15709194,47000.0,46998.0,0.26348803]
[1641377235880,0.608828,46999.0,46998.0,0.21028462]
[1641377236081,0.353536,46999.0,46998.0,0.21028462]
[1641377236279,0.80741748,46999.0,46998.0,0.21028462]
[1641377236679,1.06270948,46999.0,46998.0,0.21028462]
[1641377236939,1.06270948,46999.0,46988.0,0.01220364]
[1641377236940,0.0012326,46992.0,46988.0,0.01220364]
[1641377237235,0.353536,46991.0,46988.0,0.01220364]
[1641377237434,0.27599497,46989.0,46988.0,0.01220364]
[1641377237634,0.95911756,46989.0,46988.0,0.01220364]
[1641377238334,0.95911756,46989.0,46981.0,0.10644578]
[1641377238535,0.39140996,46988.0,46981.0,0.10644578]
[1641377238735,0.28496496,46988.0,46981.0,0.10644578]
[1641377238935,0.24839795,46987.0,46981.0,0.10644578]
[1641377239135,0.05,46988.0,46983.0,0.05322517]
[1641377239338,0.305,46999.0,46984.0,0.0479]
[1641377239543,0.106418,46995.0,46989.0,0.10642186]
[1641377239935,0.106418,46995.0,46990.0,0.0479]
[1641377240135,0.31744711,46992.0,46990.0,0.0479]
[1641377240436,0.31744711,46992.0,46991.0,0.05321]
[1641377240437,0.37065711,46992.0,46991.0,0.05321]
[1641377240678,0.37065711,46992.0,46991.0,0.454646]
[1641377241417,1.88777493,46992.0,46980.0,0.8159735]
[1641377241578,0.37065711,46992.0,46986.0,0.05322537]
[1641377241780,0.353536,46991.0,46986.0,0.05322537]
[1641377241978,0.103223,46990.0,46982.0,0.15967356]
[1641377242180,0.103223,46990.0,46980.0,0.053222]
[1641377242377,0.00021547,46988.0,46980.0,0.053222]
[1641377242579,0.00121718,46985.0,46973.0,0.15966894]
[1641377242977,0.31269931,46977.0,46974.0,0.81200695]
[1641377243179,0.28769931,46977.0,46975.0,0.353536]
[1641377243477,0.39415631,46977.0,46975.0,0.353536]
[1641377243677,0.39415631,46977.0,46975.0,0.05322821]
[1641377244180,0.39415631,46977.0,46975.0,0.10645721]
[1641377244634,0.44415631,46977.0,46975.0,0.10645721]
[1641377244835,0.39415631,46977.0,46976.0,0.353536]
[1641377245033,0.39415631,46977.0,46975.0,0.10645721]
[1641377245535,0.053228,46979.0,46976.0,0.25608482]
[1641377245737,0.053228,46979.0,46978.0,0.353536]
[1641377245934,0.053228,46979.0,46978.0,0.15422]
[1641377247135,0.295,46989.0,46978.0,0.15422]
[1641377247136,0.54826394,47000.0,46983.0,1.26]
[1641377247341,0.54826394,47000.0,46991.0,0.0532093]
[1641377247535,0.54826394,47000.0,46991.0,0.0479]
[1641377247536,0.37836436,46996.0,46991.0,0.0479]
[1641377247736,0.053209,46996.0,46991.0,0.0479]
[1641377248174,0.23496076,46994.0,46991.0,0.0479]
[1641377248576,0.54826394,47000.0,46993.0,0.10641539]
[1641377248577,0.106423,46995.0,46993.0,0.10641539]
[1641377248775,0.32416679,46996.0,46995.0,0.053204]
[1641377248975,0.32416679,46996.0,46995.0,0.0479]
[1641377249575,0.9043997,46996.0,46993.0,0.053208]
[1641377249775,0.9043997,46996.0,46994.0,0.10640757]
[1641377250176,0.053211,46998.0,46994.0,0.10640757]
[1641377250379,0.053211,46998.0,46995.0,0.15431457]
[1641377251078,0.60146194,47000.0,46995.0,0.101111]
[1641377251477,0.60146194,47000.0,46997.0,0.10639652]
[1641377251678,0.60146194,47000.0,46998.0,0.0479]
[1641377251925,0.60146194,47000.0,46998.0,0.0979]
[1641377252527,6.134e-05,46999.0,46998.0,0.0979]
[1641377255773,6.134e-05,46999.0,46998.0,0.0479]
[1641377257171,0.2422404,46999.0,46998.0,0.0479]
[1641377257371,6.134e-05,46999.0,46998.0,0.0479]
[1641377257972,6.134e-05,46999.0,46997.0,0.05319752]
[1641377259423,6.134e-05,46999.0,46998.0,0.101098]
[1641377259624,6.134e-05,46999.0,46998.0,0.151098]
[1641377261528,6.134e-05,46999.0,46998.0,0.504634]
[1641377261827,6.134e-05,46999.0,46998.0,0.604634]
[1641377265378,0.5999667,47000.0,46998.0,0.604634]
[1641377265574,0.5999667,47000.0,46998.0,0.251098]
[1641377265976,0.32478556,46999.0,46998.0,0.0479]
[1641377266377,0.32478556,46999.0,46997.0,0.05319752]
[1641377267826,0.5999667,47000.0,46997.0,0.05319752]
[1641377268028,0.5999667,47000.0,46997.0,0.10639852]
[1641377268626,0.5999667,47000.0,46998.0,0.053198]
[1641377268827,0.5999667,47000.0,46998.0,0.151098]
[1641377269326,0.5999667,47000.0,46998.0,0.0979]
[1641377269827,0.5999667,47000.0,46998.0,0.151096]
[1641377270026,0.5999667,47000.0,46999.0,0.353536]
[1641377270226,0.5999667,47000.0,46999.0,0.401436]
[1641377270426,0.5999667,47000.0,46999.0,0.501436]
[1641377271477,0.5999667,47000.0,46999.0,0.1479]
[1641377271676,0.5999667,47000.0,46999.0,0.0479]
[1641377272278,0.5999667,47000.0,46998.0,0.05]
[1641377272879,0.5999667,47000.0,46997.0,0.52639852]
[1641377273079,0.32368268,46999.0,46997.0,0.47319752]
[1641377273282,0.63220677,46999.0,46997.0,0.47319752]
[1641377273879,0.32368268,46999.0,46997.0,0.47319752]
[1641377278990,0.5999667,47000.0,46997.0,0.702998]
[1641377279191,0.5999667,47000.0,46997.0,0.75989176]
[1641377279389,0.5999667,47000.0,46998.0,0.0479]
[1641377279589,0.5999667,47000.0,46998.0,0.0979]
[1641377280993,0.5999667,47000.0,46998.0,0.0479]
[1641377281395,0.5999667,47000.0,46997.0,0.52639652]
[1641377283627,0.94702145,47000.0,46997.0,0.52639652]
[1641377283831,0.5999667,47000.0,46998.0,0.2552387]
[1641377284030,0.5999667,47000.0,46999.0,0.05]
[1641377284229,0.5999667,47000.0,46999.0,0.811436]
[1641377284629,0.5999667,47000.0,46999.0,0.911436]
[1641377284830,0.54826394,47000.0,46999.0,0.911436]
[1641377285030,0.54826394,47000.0,46999.0,0.551436]
[1641377285229,0.54826394,47000.0,46999.0,0.65609753]
[1641377286289,0.54826394,47000.0,46999.0,0.88780921]
[1641377286690,0.54826394,47000.0,46999.0,0.83952868]
[1641377288190,0.54826394,47000.0,46999.0,0.507817]
[1641377288390,0.54826394,47000.0,46999.0,0.401436]
[1641377290530,0.54826394,47000.0,46999.0,0.0479]
[1641377291835,0.54826394,47000.0,46999.0,0.27766553]
[1641377292035,0.54826394,47000.0,46997.0,0.52639652]
[1641377292233,0.60146394,47000.0,46998.0,0.353536]
[1641377292933,0.60146394,47000.0,46997.0,0.52639652]
[1641377294783,0.60146394,47000.0,46998.0,0.24006653]
[1641377294982,0.60146394,47000.0,46998.0,0.23834706]
[1641377295283,0.60146394,47000.0,46998.0,0.23662759]
[1641377295481,0.60146394,47000.0,46999.0,0.0479]
[1641377295682,0.60146394,47000.0,46999.0,0.38618053]
[1641377295883,0.60146394,47000.0,46999.0,0.38446106]
[1641377296081,0.60146394,47000.0,46999.0,0.04446106]
[1641377296283,0.60146394,47000.0,46999.0,0.04274159]
[1641377297127,0.60146394,47000.0,46999.0,0.03774159]
[1641377297330,0.442229,47000.0,46997.0,0.52467705]
[1641377297529,0.14996662,47000.0,46997.0,0.52467705]
[1641377297728,0.14996662,47000.0,46998.0,0.353536]
[1641377298836,0.20316662,47000.0,46998.0,0.353536]
[1641377299226,0.20316662,47000.0,46997.0,0.52467705]
[1641377300429,0.20316662,47000.0,46998.0,0.353536]
[1641377302186,0.20316662,47000.0,46997.0,0.52467705]
[1641377302783,0.20316662,47000.0,46998.0,0.353536]
[1641377303184,0.20316662,47000.0,46998.0,0.340676]
[1641377303384,0.20316662,47000.0,46997.0,0.52467705]
[1641377303784,0.20316662,47000.0,46998.0,0.353258]
[1641377304329,0.20316662,47000.0,46998.0,0.406456]
[1641377306430,0.20316662,47000.0,46998.0,0.353258]
[1641377307230,0.20316662,47000.0,46997.0,0.52467705]
[1641377308087,0.20316662,47000.0,46997.0,0.41828053]
[1641377308088,0.29281712,46999.0,46997.0,0.41828053]
[1641377308683,0.353258,46998.0,46997.0,0.41828053]
[1641377309184,0.59218941,46999.0,46997.0,0.41828053]
[1641377309385,0.353258,46998.0,46997.0,0.41828053]
[1641377309783,0.59218941,46999.0,46997.0,0.41828053]
[1641377311286,0.59331069,46998.0,46997.0,0.41828053]
[1641377311685,0.353258,46998.0,46997.0,0.41828053]
[1641377311934,0.83691307,46999.0,46997.0,0.41828053]
[1641377312135,0.59218941,46999.0,46997.0,0.41828053]
[1641377312832,0.59218941,46999.0,46988.0,1.93676995]
[1641377313034,0.59218941,46999.0,46988.0,1.98998095]
[1641377313035,0.33670369,46995.0,46988.0,1.98998095]
[1641377313236,0.33670369,46995.0,46991.0,0.05320914]
[1641377313435,0.33670369,46995.0,46992.0,0.353258]
[1641377313634,0.2400767,46994.0,46992.0,0.353258]
[1641377313835,0.33670369,46995.0,46988.0,1.93676995]
[1641377314034,0.33670369,46995.0,46989.0,0.353258]
[1641377314436,0.00021783,46994.0,46989.0,0.353258]
[1641377314636,0.053209,46992.0,46989.0,0.353258]
[1641377314836,0.053209,46992.0,46989.0,0.40646678]
[1641377315037,0.053209,46992.0,46989.0,0.353258]
[1641377316982,0.25356821,46990.0,46989.0,0.353258]
[1641377320531,0.053215,46991.0,46989.0,0.353258]
[1641377323085,0.053215,46991.0,46990.0,0.22613958]
[1641377323282,0.053215,46991.0,46990.0,0.353258]
[1641377324081,0.053215,46991.0,46990.0,0.59334847]
[1641377324282,0.053215,46991.0,46990.0,0.69334847]
[1641377324883,0.053215,46991.0,46990.0,0.59334847]
[1641377326582,0.053215,46991.0,46990.0,0.59191378]
[1641377327829,0.053215,46991.0,46990.0,0.69191378]
[1641377328038,0.053215,46991.0,46990.0,0.73981378]
[1641377328231,0.00021372,46992.0,46990.0,0.73981378]
[1641377328431,0.106396,46996.0,46991.0,1.91191318]
[1641377328631,0.106396,46996.0,46995.0,0.353287]
[1641377328831,0.106396,46996.0,46995.0,0.63986044]
[1641377329133,0.106396,46996.0,46995.0,0.73986044]
[1641377329331,0.053196,46998.0,46995.0,0.73986044]
[1641377329536,0.25651644,47000.0,46997.0,0.092207]
[1641377329832,0.25651644,47000.0,46998.0,0.0479]
[1641377330882,0.25651644,47000.0,46998.0,0.101095]
[1641377331986,0.25651644,47000.0,46998.0,0.33173687]
[1641377332183,0.25651644,47000.0,46998.0,0.101095]
[1641377332383,0.25651644,47000.0,46998.0,0.201095]
[1641377333685,0.25651644,47000.0,46998.0,0.101095]
[1641377334740,0.25651644,47000.0,46998.0,0.0479]
[1641377339087,0.25627583,47000.0,46998.0,0.0479]
[1641377341388,0.25627583,47000.0,46998.0,0.101094]
[1641377341689,0.25627583,47000.0,46998.0,0.0479]
[1641377342156,0.25627583,47000.0,46997.0,0.051096]
[1641377342356,0.25627583,47000.0,46998.0,0.0479]
[1641377344959,0.25627583,47000.0,46998.0,0.2775372]
[1641377345158,0.25627583,47000.0,46999.0,0.19208293]
[1641377345359,0.25627583,47000.0,46999.0,0.23998293]
[1641377345784,0.25627583,47000.0,46999.0,0.0479]
[1641377349088,0.25627583,47000.0,46995.0,0.106391]
[1641377349334,0.30627583,47000.0,46994.0,0.81329106]
[1641377349534,0.053207,46998.0,46994.0,0.81329106]
[1641377349734,0.053207,46998.0,46995.0,0.353287]
[1641377350338,0.053207,46998.0,46995.0,0.406488]
[1641377351438,0.053207,46998.0,46995.0,0.506488]
[1641377351633,0.053207,46998.0,46995.0,0.453287]
[1641377351835,0.053207,46998.0,46995.0,0.353287]
[1641377352636,0.053207,46998.0,46995.0,0.406483]
[1641377353287,0.053207,46998.0,46996.0,0.27283661]
[1641377353488,0.053207,46998.0,46996.0,0.0479]
[1641377354288,0.053207,46998.0,46996.0,0.101096]
[1641377354686,0.053207,46998.0,46996.0,0.3253326]
[1641377354887,0.053207,46998.0,46997.0,0.353287]
[1641377355087,0.053207,46998.0,46997.0,0.453287]
[1641377355288,0.053207,46998.0,46997.0,0.501187]
[1641377357332,0.053207,46998.0,46997.0,0.453287]
[1641377359338,0.053207,46998.0,46997.0,0.1]
[1641377359536,0.053207,46998.0,46994.0,0.053199]
[1641377359737,0.053207,46998.0,46995.0,0.353287]
[1641377360239,0.053207,46998.0,46995.0,0.453287]
[1641377361785,0.053207,46998.0,46995.0,0.506485]
[1641377364531,0.053207,46998.0,46995.0,0.453287]
[1641377364932,0.053207,46998.0,46995.0,0.1]
[1641377365133,0.053207,46998.0,46991.0,0.0479]
[1641377365334,0.053207,46998.0,46992.0,0.353287]
[1641377365735,0.053207,46998.0,46992.0,0.453287]
[1641377365934,0.103207,46998.0,46992.0,0.353287]
[1641377366135,0.31347546,46996.0,46992.0,0.353287]
[1641377366338,0.053203,46995.0,46992.0,0.353287]
[1641377367237,0.2852851,46993.0,46992.0,0.353287]
[1641377367436,0.2852851,46993.0,46988.0,0.203206]
[1641377367636,0.053207,46992.0,46988.0,0.203206]
[1641377367836,0.053207,46992.0,46989.0,0.353287]
[1641377368087,0.053207,46992.0,46989.0,0.453287]
[1641377368287,0.053207,46992.0,46989.0,0.353287]
[1641377368488,0.053207,46992.0,46989.0,0.453287]
[1641377369693,0.053207,46992.0,46990.0,0.053204]
[1641377369889,0.053207,46992.0,46991.0,0.353287]
[1641377370090,0.053207,46992.0,46991.0,0.453287]
[1641377370690,0.053207,46992.0,46991.0,0.353287]
[1641377370891,0.053207,46992.0,46988.0,0.203207]
[1641377371091,0.053207,46992.0,46989.0,0.353287]
[1641377371492,0.053207,46992.0,46989.0,0.453287]
[1641377372135,0.053207,46992.0,46990.0,0.053205]
[1641377372338,0.053207,46992.0,46991.0,0.353287]
[1641377372537,0.053207,46992.0,46991.0,1.26657806]
[1641377373336,0.053207,46992.0,46991.0,2.46999236]
[1641377375137,0.053207,46992.0,46991.0,1.6567013]
[1641377376790,0.053207,46992.0,46991.0,1.7046013]
[1641377377890,0.053207,46992.0,46991.0,2.5170336]
[1641377378090,0.053207,46992.0,46991.0,0.501187]
[1641377378289,0.053207,46992.0,46991.0,0.73080545]
[1641377378491,0.053207,46992.0,46991.0,1.93421975]
[1641377378889,0.053207,46992.0,46991.0,0.73080545]
[1641377379739,0.053207,46992.0,46991.0,1.93421975]
[1641377382042,0.0002163,46994.0,46991.0,1.93421975]
[1641377382245,0.0002163,46994.0,46993.0,1.226483]
[1641377382443,0.0002163,46994.0,46993.0,0.454383]
[1641377382645,0.0002163,46994.0,46993.0,0.554383]
[1641377382843,0.0002163,46994.0,46993.0,1.98396765]
[1641377383085,0.0002163,46994.0,46993.0,1.7577973]
[1641377383288,0.106395,46998.0,46993.0,1.36680821]
[1641377383487,0.053196,46995.0,46993.0,1.42000616]
[1641377383687,0.053196,46995.0,46994.0,0.353287]
[1641377383886,0.053196,46995.0,46994.0,0.401187]
[1641377384087,0.053196,46995.0,46994.0,0.501187]
[1641377393097,0.053196,46995.0,46994.0,0.72775727]
[1641377393495,0.053196,46995.0,46994.0,2.74348484]
[1641377393896,0.053196,46995.0,46994.0,1.54018248]
[1641377394094,0.053196,46995.0,46994.0,1.31361221]
[1641377394635,0.053196,46995.0,46994.0,2.51691457]
[1641377394835,0.03346514,46995.0,46994.0,2.51691457]
[1641377395036,0.03346514,46995.0,46994.0,1.70448936]
[1641377395436,0.00371444,46995.0,46994.0,1.70448936]
[1641377396339,0.00371444,46995.0,46994.0,1.70440739]
[1641377396538,0.00371444,46995.0,46994.0,2.51738059]
[1641377397439,0.00371444,46995.0,46994.0,1.70440739]
[1641377398687,0.00371444,46995.0,46994.0,2.51719701]
[1641377399889,0.00371444,46995.0,46994.0,1.70440739]
[1641377401491,0.00371444,46995.0,46994.0,1.70432456]
[1641377401940,0.00371444,46995.0,46994.0,0.5010222]
[1641377403742,0.00121444,46995.0,46994.0,0.5010222]
[1641377404143,0.00121444,46995.0,46994.0,0.73221395]
[1641377404544,0.00121444,46995.0,46994.0,0.5010222]
[1641377405148,0.00121444,46995.0,46994.0,2.51651145]
[1641377405590,0.00121444,46995.0,46994.0,0.5010222]
[1641377407087,0.00121444,46995.0,46994.0,0.72629083]
[1641377407287,0.00121444,46995.0,46994.0,0.5010222]
[1641377407888,0.00121444,46995.0,46994.0,2.51652245]
[1641377408490,0.00121444,46995.0,46994.0,1.31323765]
[1641377408889,0.00121444,46995.0,46994.0,2.51652245]